[Event "Late-Titled-Tuesday-Blitz-January-16-2024"]
[Site "Chess.com"]
[Date "2024.01.16"]
[Round "3"]
[White "Perecke"]
[Black "Mariia89"]
[Result "1-0"]
[WhiteElo "2554"]
[BlackElo "2206"]
[TimeControl "180+1"]
[EndTime "14:27:56 PST"]
[Termination "Perecke won by resignation"]

1. e4 {[%clk 0:02:07]} 1... c6 {[%clk 0:02:58.1]} 2. d4 {[%clk 0:02:02.9]} 2...
d5 {[%clk 0:02:58.6]} 3. Nc3 {[%clk 0:02:03.5]} 3... dxe4 {[%clk 0:02:58.6]} 4.
Nxe4 {[%clk 0:02:04.4]} 4... Nf6 {[%clk 0:02:58.3]} 5. Nxf6+ {[%clk 0:02:03.9]}
5... exf6 {[%clk 0:02:59.2]} 6. c3 {[%clk 0:02:04.6]} 6... Be7 {[%clk
0:02:59.5]} 7. Bd3 {[%clk 0:02:05.3]} 7... Na6 {[%clk 0:02:59.5]} 8. Ne2 {[%clk
0:02:04.6]} 8... Nc7 {[%clk 0:02:59.9]} 9. Bf4 {[%clk 0:02:03.2]} 9... Nd5
{[%clk 0:03:00.2]} 10. Bg3 {[%clk 0:02:02.7]} 10... Bg4 {[%clk 0:02:58.1]} 11.
Qc2 {[%clk 0:02:02.3]} 11... g6 {[%clk 0:02:38.3]} 12. O-O-O {[%clk 0:01:57.5]}
12... Bxe2 {[%clk 0:02:35.6]} 13. Qxe2 {[%clk 0:01:46.9]} 13... O-O {[%clk
0:02:34.7]} 14. h4 {[%clk 0:01:46.9]} 14... h5 {[%clk 0:02:31.3]} 15. Bh2 {[%clk
0:01:32.8]} 15... Bd6 {[%clk 0:02:26.6]} 16. g4 {[%clk 0:01:30.8]} 16... Bxh2
{[%clk 0:02:11]} 17. Rxh2 {[%clk 0:01:27.3]} 17... Nf4 {[%clk 0:02:10.9]} 18.
Qf3 {[%clk 0:01:25.5]} 18... Nxd3+ {[%clk 0:01:53.6]} 19. Rxd3 {[%clk
0:01:21.7]} 19... Re8 {[%clk 0:01:21.7]} 20. gxh5 {[%clk 0:01:17.2]} 20... Re1+
{[%clk 0:01:18.5]} 21. Kd2 {[%clk 0:01:08.4]} 21... Qe7 {[%clk 0:01:15.5]} 22.
hxg6 {[%clk 0:01:07.7]} 22... fxg6 {[%clk 0:01:15.5]} 23. Rg2 {[%clk 0:01:02.2]}
23... Kf7 {[%clk 0:00:42.8]} 24. h5 {[%clk 0:00:35.3]} 24... g5 {[%clk 0:00:12]}
25. Rxg5 {[%clk 0:00:24.1]} 25... Re2+ {[%clk 0:00:12.1]} 26. Qxe2 {[%clk
0:00:23.8]} 26... Qxe2+ {[%clk 0:00:13]} 27. Kxe2 {[%clk 0:00:24.7]} 27... fxg5
{[%clk 0:00:13.5]} 28. Kf3 {[%clk 0:00:23.8]} 28... Kf6 {[%clk 0:00:10.4]} 29.
Kg4 {[%clk 0:00:23.4]} 29... Re8 {[%clk 0:00:08]} 30. Re3 {[%clk 0:00:22.9]}
30... Rh8 {[%clk 0:00:08.1]} 31. Rf3+ {[%clk 0:00:22.6]} 31... Ke6 {[%clk
0:00:06.2]} 32. Kxg5 {[%clk 0:00:23.5]} 32... Rg8+ {[%clk 0:00:05]} 33. Kh6
{[%clk 0:00:23.7]} 33... Rg2 {[%clk 0:00:04.4]} 34. Kh7 {[%clk 0:00:23.5]} 34...
b5 {[%clk 0:00:03.6]} 35. h6 {[%clk 0:00:23.8]} 35... a5 {[%clk 0:00:03.1]} 36.
Kh8 {[%clk 0:00:23.7]} 36... b4 {[%clk 0:00:02.1]} 37. cxb4 {[%clk 0:00:21.4]}
37... axb4 {[%clk 0:00:02.2]} 38. a4 {[%clk 0:00:21.5]} 38... bxa3 {[%clk
0:00:02]} 39. bxa3 {[%clk 0:00:22.1]} 39... Kd5 {[%clk 0:00:02.4]} 40. h7 {[%clk
0:00:21.4]} 40... Kxd4 {[%clk 0:00:02.7]} 41. Rf7 {[%clk 0:00:21.8]} 41... c5
{[%clk 0:00:02.9]} 42. Rg7 {[%clk 0:00:21]} 42... Rxf2 {[%clk 0:00:03.1]} 43.
Kg8 {[%clk 0:00:21.5]} 43... Rh2 {[%clk 0:00:03.3]} 44. h8=Q {[%clk 0:00:21.5]}
44... Rxh8+ {[%clk 0:00:02.8]} 45. Kxh8 {[%clk 0:00:22.4]} 45... c4 {[%clk
0:00:02.8]} 46. a4 {[%clk 0:00:20.6]} 46... c3 {[%clk 0:00:03.1]} 47. a5 {[%clk
0:00:20.6]} 47... c2 {[%clk 0:00:03.4]} 48. Rc7 {[%clk 0:00:21.2]} 48... Kd3
{[%clk 0:00:04.3]} 49. a6 {[%clk 0:00:21.1]} 49... c1=Q {[%clk 0:00:03.7]} 50.
Rxc1 {[%clk 0:00:22]} 1-0

[Event "Late-Titled-Tuesday-Blitz-January-16-2024"]
[Site "Chess.com"]
[Date "2024.01.16"]
[Round "3"]
[White "sansanathalia"]
[Black "koncheto"]
[Result "0-1"]
[WhiteElo "2378"]
[BlackElo "2587"]
[TimeControl "180+1"]
[EndTime "14:27:57 PST"]
[Termination "koncheto won by resignation"]

1. e4 {[%clk 0:02:57.8]} 1... c5 {[%clk 0:02:56.6]} 2. Nf3 {[%clk 0:02:56.9]}
2... d6 {[%clk 0:02:56.9]} 3. d4 {[%clk 0:02:55.5]} 3... cxd4 {[%clk 0:02:57.8]}
4. Qxd4 {[%clk 0:02:55.2]} 4... a6 {[%clk 0:02:55.3]} 5. c4 {[%clk 0:02:43.1]}
5... Nc6 {[%clk 0:02:53.5]} 6. Qd2 {[%clk 0:02:40.4]} 6... Bg4 {[%clk
0:02:49.7]} 7. Be2 {[%clk 0:02:37.9]} 7... g6 {[%clk 0:02:49.3]} 8. O-O {[%clk
0:02:33.1]} 8... Bg7 {[%clk 0:02:49.2]} 9. Nc3 {[%clk 0:02:31.4]} 9... Nf6
{[%clk 0:02:48.2]} 10. h3 {[%clk 0:02:30.8]} 10... Bxf3 {[%clk 0:02:48.3]} 11.
Bxf3 {[%clk 0:02:30.4]} 11... O-O {[%clk 0:02:44.4]} 12. Be2 {[%clk 0:02:24.7]}
12... Nd7 {[%clk 0:02:40.2]} 13. b3 {[%clk 0:02:13]} 13... Nc5 {[%clk
0:01:55.5]} 14. f3 {[%clk 0:02:06.8]} 14... f5 {[%clk 0:01:17.6]} 15. exf5
{[%clk 0:02:01.2]} 15... Rxf5 {[%clk 0:01:17.6]} 16. Bb2 {[%clk 0:01:59.5]}
16... Qd7 {[%clk 0:01:06.7]} 17. Nd5 {[%clk 0:01:50.4]} 17... Bxb2 {[%clk
0:00:49.9]} 18. Qxb2 {[%clk 0:01:47.8]} 18... Raf8 {[%clk 0:00:50.5]} 19. g4
{[%clk 0:01:41.5]} 19... R5f7 {[%clk 0:00:43.8]} 20. Rae1 {[%clk 0:01:32.3]}
20... e5 {[%clk 0:00:37.4]} 21. Qc3 {[%clk 0:01:11.2]} 21... Ne6 {[%clk
0:00:30.5]} 22. Bd1 {[%clk 0:01:04.9]} 22... Ncd4 {[%clk 0:00:25.1]} 23. h4
{[%clk 0:00:57.1]} 23... Nf4 {[%clk 0:00:24.9]} 24. Nxf4 {[%clk 0:00:51.4]}
24... Rxf4 {[%clk 0:00:25.2]} 25. Kg2 {[%clk 0:00:50.7]} 25... Qc6 {[%clk
0:00:19.4]} 26. Kg3 {[%clk 0:00:44.2]} 26... R8f6 {[%clk 0:00:10.8]} 27. Bc2
{[%clk 0:00:36.9]} 27... Rxf3+ {[%clk 0:00:07.4]} 28. Qxf3 {[%clk 0:00:19.7]}
28... Rxf3+ {[%clk 0:00:06.8]} 29. Kh2 {[%clk 0:00:18.9]} 29... Rxf1 {[%clk
0:00:04.2]} 30. Rxf1 {[%clk 0:00:18.9]} 30... Nxc2 {[%clk 0:00:05.1]} 31. Kg3
{[%clk 0:00:16.3]} 31... Nd4 {[%clk 0:00:04.9]} 32. h5 {[%clk 0:00:13.3]} 32...
d5 {[%clk 0:00:05.2]} 33. cxd5 {[%clk 0:00:12]} 33... Qxd5 {[%clk 0:00:05.4]}
34. Kh4 {[%clk 0:00:10.9]} 34... Nf3+ {[%clk 0:00:05.2]} 35. Kg3 {[%clk
0:00:11]} 35... Nd2 {[%clk 0:00:05.5]} 36. Rc1 {[%clk 0:00:08.8]} 36... Ne4+
{[%clk 0:00:05.8]} 37. Kh4 {[%clk 0:00:05.5]} 37... Qd8+ {[%clk 0:00:05.9]} 38.
Kh3 {[%clk 0:00:05.1]} 38... Ng5+ {[%clk 0:00:05.8]} 39. Kg3 {[%clk 0:00:04.6]}
39... Qd3+ {[%clk 0:00:05.5]} 40. Kh4 {[%clk 0:00:04.5]} 40... Nf3+ {[%clk
0:00:05.4]} 41. Kg3 {[%clk 0:00:04.7]} 41... Ng1+ {[%clk 0:00:04.9]} 42. Kg2
{[%clk 0:00:03.1]} 42... Qf3+ {[%clk 0:00:04.8]} 43. Kh2 {[%clk 0:00:02.5]}
43... Qh3+ {[%clk 0:00:04.8]} 44. Kxg1 {[%clk 0:00:03.1]} 44... Qe3+ {[%clk
0:00:05.7]} 45. Kg2 {[%clk 0:00:03.3]} 45... Qxc1 {[%clk 0:00:06.6]} 46. hxg6
{[%clk 0:00:03.6]} 46... hxg6 {[%clk 0:00:06.9]} 47. Kg3 {[%clk 0:00:03.7]}
47... Qb2 {[%clk 0:00:07.2]} 48. Kh4 {[%clk 0:00:04.6]} 48... Qxa2 {[%clk
0:00:07.6]} 49. Kg5 {[%clk 0:00:04.9]} 49... Qxb3 {[%clk 0:00:08.2]} 50. Kxg6
{[%clk 0:00:05.2]} 50... Qg3 {[%clk 0:00:07.9]} 0-1

[Event "Late-Titled-Tuesday-Blitz-January-16-2024"]
[Site "Chess.com"]
[Date "2024.01.16"]
[Round "3"]
[White "ATM622"]
[Black "IngOscarArdila"]
[Result "1-0"]
[WhiteElo "2484"]
[BlackElo "2364"]
[TimeControl "180+1"]
[EndTime "14:27:57 PST"]
[Termination "ATM622 won by checkmate"]

1. d4 {[%clk 0:03:00.9]} 1... Nf6 {[%clk 0:02:59.3]} 2. c4 {[%clk 0:03:00]} 2...
e6 {[%clk 0:03:00.2]} 3. g3 {[%clk 0:03:00.1]} 3... Be7 {[%clk 0:03:00.8]} 4.
Bg2 {[%clk 0:03:00.4]} 4... O-O {[%clk 0:03:01.7]} 5. Nf3 {[%clk 0:03:00.7]}
5... d6 {[%clk 0:03:02.6]} 6. O-O {[%clk 0:03:01]} 6... Nbd7 {[%clk 0:03:03.5]}
7. Nc3 {[%clk 0:03:01.4]} 7... e5 {[%clk 0:03:04.1]} 8. e4 {[%clk 0:03:00.9]}
8... c6 {[%clk 0:03:04.3]} 9. b3 {[%clk 0:03:01]} 9... Qc7 {[%clk 0:03:04.2]}
10. Bb2 {[%clk 0:03:01.2]} 10... Re8 {[%clk 0:03:04.7]} 11. Qc2 {[%clk
0:03:00.1]} 11... Nf8 {[%clk 0:03:05.2]} 12. h3 {[%clk 0:02:52.9]} 12... Ng6
{[%clk 0:03:04.3]} 13. Rfd1 {[%clk 0:02:43.9]} 13... Bd7 {[%clk 0:03:01.6]} 14.
Rac1 {[%clk 0:02:38.8]} 14... Rad8 {[%clk 0:03:00.4]} 15. a4 {[%clk 0:02:33.3]}
15... a5 {[%clk 0:02:58.7]} 16. Ba3 {[%clk 0:02:30.7]} 16... Qb8 {[%clk
0:02:43.3]} 17. d5 {[%clk 0:02:24.2]} 17... cxd5 {[%clk 0:02:42.1]} 18. cxd5
{[%clk 0:02:13.5]} 18... Rc8 {[%clk 0:02:41.3]} 19. Qb2 {[%clk 0:02:06]} 19...
Rc7 {[%clk 0:02:37.3]} 20. Nd2 {[%clk 0:02:02.7]} 20... Rec8 {[%clk 0:02:33.2]}
21. Nc4 {[%clk 0:01:59.3]} 21... Ne8 {[%clk 0:02:12.7]} 22. Nb5 {[%clk
0:01:53.3]} 22... Bg5 {[%clk 0:02:12.8]} 23. Rc2 {[%clk 0:01:48.6]} 23... Bxb5
{[%clk 0:02:11.8]} 24. axb5 {[%clk 0:01:48.4]} 24... Rd7 {[%clk 0:01:52.4]} 25.
h4 {[%clk 0:01:41.6]} 25... Bd8 {[%clk 0:01:50.5]} 26. Bh3 {[%clk 0:01:41.2]}
26... Rxc4 {[%clk 0:01:46.5]} 27. Rxc4 {[%clk 0:01:37]} 27... Rc7 {[%clk
0:01:46.9]} 28. Rdc1 {[%clk 0:01:35.4]} 28... b6 {[%clk 0:01:39.1]} 29. Rc6
{[%clk 0:01:32.4]} 29... Ne7 {[%clk 0:01:36.7]} 30. Rxc7 {[%clk 0:01:27.6]}
30... Bxc7 {[%clk 0:01:34.1]} 31. Qc2 {[%clk 0:01:26.5]} 31... Bd8 {[%clk
0:01:22.6]} 32. Qc4 {[%clk 0:01:02.4]} 32... g6 {[%clk 0:01:21.3]} 33. Rc2
{[%clk 0:00:59.6]} 33... Kg7 {[%clk 0:01:20.6]} 34. Bc1 {[%clk 0:00:58.4]} 34...
h6 {[%clk 0:01:19.5]} 35. h5 {[%clk 0:00:55.1]} 35... Nf6 {[%clk 0:01:07.7]} 36.
hxg6 {[%clk 0:00:52.3]} 36... fxg6 {[%clk 0:01:08.6]} 37. Be3 {[%clk 0:00:46.7]}
37... Nfg8 {[%clk 0:00:55.7]} 38. Be6 {[%clk 0:00:41.9]} 38... Nf6 {[%clk
0:00:55.3]} 39. Qe2 {[%clk 0:00:40.9]} 39... Qb7 {[%clk 0:00:45.1]} 40. f3
{[%clk 0:00:33.3]} 40... Qb8 {[%clk 0:00:43.6]} 41. Qd2 {[%clk 0:00:32.3]} 41...
Nfg8 {[%clk 0:00:34.5]} 42. Kg2 {[%clk 0:00:31.9]} 42... g5 {[%clk 0:00:33]} 43.
Rc1 {[%clk 0:00:26.5]} 43... Qb7 {[%clk 0:00:23.1]} 44. Bxg5 {[%clk 0:00:22]}
44... hxg5 {[%clk 0:00:21.6]} 45. Qxg5+ {[%clk 0:00:21.6]} 45... Kf8 {[%clk
0:00:19.8]} 46. Rh1 {[%clk 0:00:15.2]} 46... Qc7 {[%clk 0:00:18.9]} 47. Rh8
{[%clk 0:00:12.9]} 47... Qc2+ {[%clk 0:00:18.6]} 48. Kh3 {[%clk 0:00:12.8]}
48... Qd1 {[%clk 0:00:10.2]} 49. Rxg8+ {[%clk 0:00:12]} 49... Nxg8 {[%clk
0:00:09.3]} 50. Qxg8+ {[%clk 0:00:12.5]} 50... Ke7 {[%clk 0:00:10]} 51. Qf7#
{[%clk 0:00:13.1]} 1-0

[Event "Late-Titled-Tuesday-Blitz-January-16-2024"]
[Site "Chess.com"]
[Date "2024.01.16"]
[Round "3"]
[White "Harsha_Bharathakoti"]
[Black "WPWPWP-2015"]
[Result "1-0"]
[WhiteElo "2942"]
[BlackElo "2528"]
[TimeControl "180+1"]
[EndTime "14:27:58 PST"]
[Termination "Harsha_Bharathakoti won by resignation"]

1. e4 {[%clk 0:03:00.9]} 1... e5 {[%clk 0:02:57.6]} 2. Nf3 {[%clk 0:02:59.6]}
2... Nc6 {[%clk 0:02:57.7]} 3. Bb5 {[%clk 0:03:00.2]} 3... Nf6 {[%clk
0:02:57.1]} 4. d3 {[%clk 0:02:59.4]} 4... d6 {[%clk 0:02:55.6]} 5. O-O {[%clk
0:02:56.9]} 5... Be7 {[%clk 0:02:55.8]} 6. c3 {[%clk 0:02:56.1]} 6... O-O {[%clk
0:02:55.7]} 7. Re1 {[%clk 0:02:55]} 7... Bg4 {[%clk 0:02:54.6]} 8. Nbd2 {[%clk
0:02:54]} 8... a6 {[%clk 0:02:53.5]} 9. Ba4 {[%clk 0:02:54.3]} 9... b5 {[%clk
0:02:53.7]} 10. Bc2 {[%clk 0:02:53.4]} 10... d5 {[%clk 0:02:52.4]} 11. h3 {[%clk
0:02:50]} 11... Bh5 {[%clk 0:02:48.6]} 12. Qe2 {[%clk 0:02:48.4]} 12... dxe4
{[%clk 0:02:43.9]} 13. dxe4 {[%clk 0:02:49.3]} 13... h6 {[%clk 0:02:43.6]} 14.
Nf1 {[%clk 0:02:47.8]} 14... Bg6 {[%clk 0:02:39.2]} 15. Ng3 {[%clk 0:02:42.2]}
15... Bc5 {[%clk 0:02:37.4]} 16. b4 {[%clk 0:02:36.2]} 16... Bd6 {[%clk
0:02:26.1]} 17. a4 {[%clk 0:02:34.5]} 17... bxa4 {[%clk 0:01:53.1]} 18. Bxa4
{[%clk 0:02:33.1]} 18... Ne7 {[%clk 0:01:53.1]} 19. Nh4 {[%clk 0:02:29.7]} 19...
Bh7 {[%clk 0:01:51.9]} 20. Qf3 {[%clk 0:02:29.5]} 20... a5 {[%clk 0:01:31.5]}
21. Bxh6 {[%clk 0:02:22.3]} 21... axb4 {[%clk 0:01:31.3]} 22. cxb4 {[%clk
0:02:15.9]} 22... Bxb4 {[%clk 0:01:29.8]} 23. Red1 {[%clk 0:02:15.8]} 23... Bd6
{[%clk 0:01:28.8]} 24. Bg5 {[%clk 0:02:11.6]} 24... Ng6 {[%clk 0:01:18.3]} 25.
Nhf5 {[%clk 0:02:03.9]} 25... Nf4 {[%clk 0:01:05.5]} 26. Nxd6 {[%clk 0:01:39]}
26... cxd6 {[%clk 0:01:02]} 27. Bxf4 {[%clk 0:01:39.3]} 27... exf4 {[%clk
0:00:53.1]} 28. Qxf4 {[%clk 0:01:40.2]} 28... Qe7 {[%clk 0:00:40.9]} 29. Bc6
{[%clk 0:01:33.1]} 29... Rxa1 {[%clk 0:00:37.3]} 30. Rxa1 {[%clk 0:01:34]} 30...
Rc8 {[%clk 0:00:32.7]} 31. Ra6 {[%clk 0:01:24.7]} 31... Qe5 {[%clk 0:00:26.8]}
32. Qxe5 {[%clk 0:01:16.9]} 32... dxe5 {[%clk 0:00:27.7]} 33. f3 {[%clk
0:01:16.8]} 33... Bg6 {[%clk 0:00:27.2]} 34. h4 {[%clk 0:01:13.8]} 34... Kf8
{[%clk 0:00:20.6]} 35. Kf2 {[%clk 0:01:10.4]} 35... Ne8 {[%clk 0:00:20.3]} 36.
Bxe8 {[%clk 0:01:09.7]} 36... Kxe8 {[%clk 0:00:20.4]} 37. h5 {[%clk 0:01:02]}
37... Bh7 {[%clk 0:00:20.3]} 38. Nf1 {[%clk 0:00:43.7]} 38... Rc2+ {[%clk
0:00:19]} 39. Kg3 {[%clk 0:00:43.8]} 39... Kf8 {[%clk 0:00:19.3]} 40. Ne3 {[%clk
0:00:43]} 40... Rc8 {[%clk 0:00:18.7]} 41. Ng4 {[%clk 0:00:39.1]} 41... f6
{[%clk 0:00:19.1]} 42. h6 {[%clk 0:00:39.5]} 42... f5 {[%clk 0:00:16.2]} 43.
exf5 {[%clk 0:00:33.2]} 43... Bxf5 {[%clk 0:00:16.1]} 44. Nxe5 {[%clk
0:00:30.5]} 44... gxh6 {[%clk 0:00:16.3]} 45. Rf6+ {[%clk 0:00:30.9]} 45... Ke7
{[%clk 0:00:15.6]} 46. Rxf5 {[%clk 0:00:31.8]} 46... Ke6 {[%clk 0:00:15.7]} 47.
Rh5 {[%clk 0:00:31.9]} 47... Rg8+ {[%clk 0:00:14.9]} 48. Ng4 {[%clk 0:00:32.3]}
48... Rg7 {[%clk 0:00:06.1]} 49. Rxh6+ {[%clk 0:00:33.2]} 49... Kd5 {[%clk
0:00:03.5]} 50. Kf4 {[%clk 0:00:31.6]} 50... Rf7+ {[%clk 0:00:03.5]} 51. Rf6
{[%clk 0:00:32.1]} 51... Rg7 {[%clk 0:00:03.8]} 52. Ne3+ {[%clk 0:00:32.5]}
52... Kd4 {[%clk 0:00:04.1]} 53. Nf5+ {[%clk 0:00:32.8]} 53... Kd3 {[%clk
0:00:04.6]} 54. Nxg7 {[%clk 0:00:33.7]} 54... Ke2 {[%clk 0:00:05.3]} 55. Re6+
{[%clk 0:00:33.9]} 1-0

[Event "Late-Titled-Tuesday-Blitz-January-16-2024"]
[Site "Chess.com"]
[Date "2024.01.16"]
[Round "3"]
[White "Championnn-9"]
[Black "Fandorine"]
[Result "0-1"]
[WhiteElo "2529"]
[BlackElo "2955"]
[TimeControl "180+1"]
[EndTime "14:27:59 PST"]
[Termination "Fandorine won by checkmate"]

1. Nf3 {[%clk 0:03:00.1]} 1... Nf6 {[%clk 0:02:59.3]} 2. g3 {[%clk 0:02:59.7]}
2... g6 {[%clk 0:02:59.2]} 3. Bg2 {[%clk 0:03:00]} 3... Bg7 {[%clk 0:03:00.1]}
4. O-O {[%clk 0:03:00.4]} 4... O-O {[%clk 0:03:00.9]} 5. c4 {[%clk 0:03:00.7]}
5... d6 {[%clk 0:03:00.7]} 6. d3 {[%clk 0:03:00.9]} 6... c5 {[%clk 0:02:59.8]}
7. Nc3 {[%clk 0:02:58.1]} 7... Nc6 {[%clk 0:03:00]} 8. Rb1 {[%clk 0:02:50.8]}
8... Qd7 {[%clk 0:02:58.2]} 9. a3 {[%clk 0:02:49.1]} 9... b6 {[%clk 0:02:58.5]}
10. b4 {[%clk 0:02:47.9]} 10... Bb7 {[%clk 0:02:59]} 11. Qd2 {[%clk 0:02:44.7]}
11... Rfd8 {[%clk 0:02:29.3]} 12. b5 {[%clk 0:02:17.9]} 12... Ne5 {[%clk
0:02:22.4]} 13. e4 {[%clk 0:02:09.6]} 13... Nxf3+ {[%clk 0:02:17.5]} 14. Bxf3
{[%clk 0:02:10.5]} 14... Ng4 {[%clk 0:02:17.6]} 15. Bb2 {[%clk 0:02:05.6]} 15...
a6 {[%clk 0:02:16]} 16. bxa6 {[%clk 0:02:00.9]} 16... Rxa6 {[%clk 0:02:15.6]}
17. h3 {[%clk 0:01:52.7]} 17... Ne5 {[%clk 0:02:05.4]} 18. Bg2 {[%clk
0:01:52.8]} 18... Qxh3 {[%clk 0:01:37.4]} 19. Nd5 {[%clk 0:01:16.6]} 19... Qd7
{[%clk 0:01:23.8]} 20. f4 {[%clk 0:01:15.4]} 20... Nc6 {[%clk 0:00:56]} 21. Bxg7
{[%clk 0:01:14.6]} 21... Kxg7 {[%clk 0:00:56.3]} 22. Nxb6 {[%clk 0:01:15]} 22...
Qe8 {[%clk 0:00:55.5]} 23. Nd5 {[%clk 0:01:14.4]} 23... Rd7 {[%clk 0:00:52.5]}
24. f5 {[%clk 0:01:09.2]} 24... f6 {[%clk 0:00:49.7]} 25. fxg6 {[%clk
0:01:05.7]} 25... hxg6 {[%clk 0:00:48.8]} 26. Bh3 {[%clk 0:01:06.2]} 26... Ne5
{[%clk 0:00:42.8]} 27. Bxd7 {[%clk 0:01:04.8]} 27... Qxd7 {[%clk 0:00:43.7]} 28.
Rb3 {[%clk 0:00:58.8]} 28... Bxd5 {[%clk 0:00:38.7]} 29. cxd5 {[%clk 0:00:57.7]}
29... Qh3 {[%clk 0:00:29.7]} 30. d4 {[%clk 0:00:55.4]} 30... cxd4 {[%clk
0:00:28.3]} 31. Qxd4 {[%clk 0:00:55]} 31... Ra8 {[%clk 0:00:26.7]} 32. Qf2
{[%clk 0:00:48.2]} 32... Rh8 {[%clk 0:00:23.7]} 33. Qg2 {[%clk 0:00:48.6]} 33...
Qd7 {[%clk 0:00:23.6]} 34. Rfb1 {[%clk 0:00:47.2]} 34... Qa7+ {[%clk 0:00:17.1]}
35. Kf1 {[%clk 0:00:42.8]} 35... Ng4 {[%clk 0:00:17]} 36. Qg1 {[%clk 0:00:20.6]}
36... Rh1 {[%clk 0:00:13.8]} 37. Rb6 {[%clk 0:00:10]} 37... Rxg1+ {[%clk
0:00:12.9]} 38. Kxg1 {[%clk 0:00:10.9]} 38... Qxa3 {[%clk 0:00:13.2]} 39. R1b3
{[%clk 0:00:11.1]} 39... Qc5+ {[%clk 0:00:13.2]} 40. Kg2 {[%clk 0:00:10.4]}
40... Qf2+ {[%clk 0:00:13.6]} 41. Kh3 {[%clk 0:00:11]} 41... Ne5 {[%clk
0:00:12.4]} 42. Rb2 {[%clk 0:00:10.6]} 42... Qf1+ {[%clk 0:00:08.8]} 43. Rg2
{[%clk 0:00:09.5]} 43... Nf3 {[%clk 0:00:07]} 44. Rb2 {[%clk 0:00:05.5]} 44...
Qh1+ {[%clk 0:00:06.1]} 45. Kg4 {[%clk 0:00:05.3]} 45... Ne5+ {[%clk 0:00:06]}
46. Kf4 {[%clk 0:00:04.7]} 46... Qh6# {[%clk 0:00:06.6]} 0-1

[Event "Late-Titled-Tuesday-Blitz-January-16-2024"]
[Site "Chess.com"]
[Date "2024.01.16"]
[Round "3"]
[White "mishanick"]
[Black "FontVella8"]
[Result "1-0"]
[WhiteElo "3082"]
[BlackElo "2743"]
[TimeControl "180+1"]
[EndTime "14:28:00 PST"]
[Termination "mishanick won by resignation"]

1. d4 {[%clk 0:03:00.9]} 1... Nf6 {[%clk 0:02:59.5]} 2. c4 {[%clk 0:03:01.6]}
2... e6 {[%clk 0:02:59.8]} 3. Nc3 {[%clk 0:03:02.3]} 3... d5 {[%clk 0:03:00.5]}
4. Bg5 {[%clk 0:03:01.3]} 4... Be7 {[%clk 0:02:59.8]} 5. e3 {[%clk 0:03:01.7]}
5... h6 {[%clk 0:02:59.9]} 6. Bh4 {[%clk 0:03:01.3]} 6... O-O {[%clk 0:03:00]}
7. Qc2 {[%clk 0:03:01.5]} 7... b6 {[%clk 0:02:58.4]} 8. Nf3 {[%clk 0:03:00.2]}
8... Bb7 {[%clk 0:02:57.9]} 9. Bxf6 {[%clk 0:03:00.8]} 9... Bxf6 {[%clk
0:02:57.9]} 10. cxd5 {[%clk 0:03:01.7]} 10... exd5 {[%clk 0:02:58.1]} 11. Rd1
{[%clk 0:03:02.4]} 11... Re8 {[%clk 0:02:54]} 12. g3 {[%clk 0:03:02.7]} 12...
Nd7 {[%clk 0:02:45.6]} 13. Bh3 {[%clk 0:03:02.6]} 13... g6 {[%clk 0:02:28.8]}
14. O-O {[%clk 0:02:59.7]} 14... Bg7 {[%clk 0:02:28.9]} 15. Rfe1 {[%clk
0:02:48.1]} 15... a6 {[%clk 0:02:20.9]} 16. Bg2 {[%clk 0:02:37.8]} 16... Nf6
{[%clk 0:02:11.6]} 17. Ne5 {[%clk 0:02:37.3]} 17... Qd6 {[%clk 0:02:11.5]} 18.
f4 {[%clk 0:02:34.7]} 18... h5 {[%clk 0:01:58.1]} 19. Bf3 {[%clk 0:02:24.9]}
19... Rac8 {[%clk 0:01:43.3]} 20. Qg2 {[%clk 0:02:23]} 20... b5 {[%clk
0:01:31.9]} 21. a3 {[%clk 0:02:20.1]} 21... c5 {[%clk 0:01:17.5]} 22. dxc5
{[%clk 0:02:04.1]} 22... Rxc5 {[%clk 0:01:15.6]} 23. Nd3 {[%clk 0:01:47.6]}
23... Rc4 {[%clk 0:01:10.3]} 24. Nb4 {[%clk 0:01:42.8]} 24... Qb6 {[%clk
0:00:59.7]} 25. Nc2 {[%clk 0:01:14.7]} 25... Ng4 {[%clk 0:00:45.9]} 26. Bxd5
{[%clk 0:00:29.1]} 26... Bxc3 {[%clk 0:00:38.6]} 27. bxc3 {[%clk 0:00:23.8]}
27... Bxd5 {[%clk 0:00:38.4]} 28. Qxd5 {[%clk 0:00:17.6]} 28... Rxc3 {[%clk
0:00:36.5]} 29. Qd7 {[%clk 0:00:15.2]} 29... Re6 {[%clk 0:00:17.1]} 30. Nd4
{[%clk 0:00:08.4]} 30... Rexe3 {[%clk 0:00:14.8]} 31. Kg2 {[%clk 0:00:02.5]}
31... Rxe1 {[%clk 0:00:09.5]} 32. Rxe1 {[%clk 0:00:03.4]} 32... Ne3+ {[%clk
0:00:06]} 33. Kh3 {[%clk 0:00:03.5]} 33... Qf6 {[%clk 0:00:05]} 34. Qe8+ {[%clk
0:00:02.9]} 34... Kg7 {[%clk 0:00:05.2]} 35. Rxe3 {[%clk 0:00:03.3]} 35... Rxe3
{[%clk 0:00:03.7]} 36. Qxe3 {[%clk 0:00:03.1]} 36... a5 {[%clk 0:00:04.2]} 37.
Qe4 {[%clk 0:00:01.2]} 37... b4 {[%clk 0:00:04.3]} 38. axb4 {[%clk 0:00:01.9]}
38... axb4 {[%clk 0:00:05.2]} 39. Qd5 {[%clk 0:00:02.6]} 39... Qb6 {[%clk
0:00:03.7]} 40. Kg2 {[%clk 0:00:03.1]} 40... Qc7 {[%clk 0:00:03.2]} 41. Qe5+
{[%clk 0:00:03.4]} 41... Qxe5 {[%clk 0:00:03.5]} 42. fxe5 {[%clk 0:00:04.3]}
42... f6 {[%clk 0:00:03.9]} 43. e6 {[%clk 0:00:04.8]} 43... Kf8 {[%clk
0:00:04.4]} 44. Kf3 {[%clk 0:00:05.1]} 44... Ke7 {[%clk 0:00:04.9]} 45. Ke4
{[%clk 0:00:05.8]} 45... b3 {[%clk 0:00:05]} 46. Nxb3 {[%clk 0:00:05.8]} 46...
Kxe6 {[%clk 0:00:05.2]} 47. Nd4+ {[%clk 0:00:06.5]} 47... Kd6 {[%clk 0:00:05.3]}
48. h4 {[%clk 0:00:07.1]} 48... Kc5 {[%clk 0:00:04.7]} 49. Ne6+ {[%clk
0:00:07.1]} 49... Kd6 {[%clk 0:00:05.3]} 50. Nf4 {[%clk 0:00:08]} 50... g5
{[%clk 0:00:05]} 51. Nxh5 {[%clk 0:00:08.1]} 51... Ke6 {[%clk 0:00:05]} 52. Ng7+
{[%clk 0:00:08.2]} 52... Ke7 {[%clk 0:00:05.4]} 53. Nf5+ {[%clk 0:00:09.1]}
53... Kf7 {[%clk 0:00:05.8]} 54. h5 {[%clk 0:00:09.9]} 1-0